Cogmind - Beta 14 @@@ ROGUE MODE // 2024.08.13 @ 20:00:15 Player: noob Result: Destroyed by D-53 Grenadier with Mini Grenade Launcher Performance ------------- Evolutions (1) 500 Regions Visited (3) 600 Robots Destroyed (37) 185 Value Destroyed (1229) 1229 Prototype IDs (3) 60 Alien Tech Used (0) 0 Bonus (241) 241 TOTAL SCORE: 2815 Bonus ------- Pacifist 200 High Alert Combat Kills 41 Cogmind --------- Core Integrity 0/400 Matter 300/300 Energy 240/240 System Corruption 15% Temperature Cool (0) Movement Walking (190) Ox1 Location -9/Mines Parts ------- > --- POWER (1) -------- Nuclear Core > --- PROPULSION (2) --- Aluminum Leg > --- UTILITY (3) ------ Small Storage Unit Recoil Stabilizer > --- WEAPON (3) ------- Light Assault Rifle > --- INVENTORY (8) ---- Nuclear Core Nuclear Core Aluminum Leg Improved EM Shotgun Small Laser Particle Gun Peak State ------------ > --- POWER ------------ Nuclear Core > --- PROPULSION ------- Light Treads Advanced Treads > --- UTILITY ---------- Improved Heat Sink Small Storage Unit Visual Processing Unit > --- WEAPON ----------- Improved EM Shotgun Improved EM Shotgun Improved EM Shotgun > --- INVENTORY -------- Nuclear Core Nuclear Core Nuclear Core Improved Heat Sink Seismic Detector Targeting Computer Recoil Stabilizer Advanced Beam Cannon [Rating: 24] Favorites ----------- Power Nuclear Core Engine Ion Engine Power Core Nuclear Core Propulsion Advanced Treads Treads Advanced Treads Leg Aluminum Leg Utility Small Storage Unit Device Improved Heat Sink Storage Small Storage Unit Processor Visual Processing Unit Protection Light Armor Plating Weapon Improved EM Shotgun Energy Gun Improved EM Shotgun Energy Cannon Advanced Beam Cannon Ballistic Gun Light Assault Rifle Launcher Grenade Launcher Build | -11 -10 -9 -9 ------- Run | Yrd Mat Mat Min Slots Evolved 2 | . . 2 . Power . | . . . . Propulsion . | . . . . Utility 1 | . . 1 . Weapon 1 | . . 1 . Parts Attached 41 | 6 2 27 6 Power 3 | 1 . 1 1 Engine 1 | 1 . . . Core 2 | . . 1 1 Reactor . | . . . . Propulsion 10 | 2 . 6 2 Treads 6 | . . 6 . Leg 4 | 2 . . 2 Wheel . | . . . . Hover . | . . . . Flight . | . . . . Utility 11 | 1 1 7 2 Device 6 | . 1 3 2 Storage 1 | 1 . . . Processor 2 | . . 2 . Hackware . | . . . . Protection 2 | . . 2 . Artifact . | . . . . Weapon 17 | 2 1 13 1 Energy Gun 8 | 1 . 7 . Energy Cannon 2 | . . 2 . Ballistic Gun 5 | 1 . 3 1 Ballistic Cannon . | . . . . Launcher 2 | . 1 1 . Special Weapon . | . . . . Impact Weapon . | . . . . Slashing Weapon . | . . . . Piercing Weapon . | . . . . Special Melee Weapon . | . . . . Unidentified Prototypes 1 | . . 1 . Parts Lost 19 | . . 11 8 Power 1 | . . . 1 Propulsion 5 | . . 3 2 Utility 7 | . . 5 2 Weapon 6 | . . 3 3 Highest Loss Streak 3 | . . 3 3 To Critical Strikes . | . . . . Average Slot Usage (%) 91 | . 94 92 80 Engine 1 | . 14 . . Core 9 | . . 10 10 Treads 12 | . . 16 . Leg 6 | . 28 1 16 Device 12 | . 9 14 7 Storage 11 | . 14 11 11 Processor 2 | . . 2 3 Protection 2 | . . 3 . Energy Gun 15 | . . 18 15 Energy Cannon 4 | . . 4 10 Ballistic Gun 8 | . 14 8 4 Launcher 2 | . 13 1 . Peak Build Rating 24 | 6 7 24 16 Average Rating 15 | 4 6 18 14 On Entrance 7 | . 6 7 16 Naked Turns . | . . . . Heaviest Build 25 | 13 15 25 21 Greatest Support 44 | 20 20 44 20 Greatest Overweight (x) 6 | . . 6 6 Average Overweight (x) . | . . . . Largest Inventory Capacity 8 | 8 8 8 8 Average Capacity 7 | 7 8 8 8 Most Carried 8 | 4 6 8 8 Average Carried 6 | 1 4 7 6 Final Capacity 8 | 8 8 8 8 Final Carried 8 | 2 5 8 6 Class Distribution -------------------- 37% | Gunner 21% | Tank 18% | Mutant 15% | Skirmisher 7% | Scavenger-Gunner Dominant Class ---------------- Mutant | -10/Materials Gunner | -9/Materials Scavenger-Gunner | -9/Mines Resources | -11 -10 -9 -9 ----------- Run | Yrd Mat Mat Min Matter Collected 728 | 174 . 486 68 Remotely . | . . . . Salvage Created 1706 | . . 1419 287 Parts 88 | . . 82 6 Haulers Intercepted . | . . . . Recyclers Shooed 2 | . . 2 . Parts Field Recycled . | . . . . Retrieved Matter . | . . . . Parts Self-Destructed . | . . . . Prevented . | . . . . Kills | -11 -10 -9 -9 ------- Run | Yrd Mat Mat Min Combat Hostiles Destroyed 33 | . . 27 6 Guns 21 | . . 18 3 Cannons 11 | . . 8 3 AOE 1 | . . 1 . Classes Destroyed 7 | . . 7 . Worker 1 | . . 1 . Recycler 2 | . . 2 . Watcher 1 | . . 1 . Swarmer 3 | . . 3 . Grunt 21 | . . 16 5 Brawler 2 | . . 1 1 Sentry 7 | . . 7 . Best Kill Streak 4 | . . 4 2 Combat Bots Only 3 | . . 3 2 Max Kills in Single Turn 2 | . . 2 1 Gunslinging 1 | . . 1 . Exploded 1 | . . 1 . Melee . | . . . . Uniques/NPCs Destroyed . | . . . . Combat | -11 -10 -9 -9 -------- Run | Yrd Mat Mat Min Hostile Shots Fired 209 | . . 163 46 Missed 62 | . . 51 11 Damage Taken 2231 | . 24 1534 673 Core 401 | . . 231 170 Absorbed by Shields . | . . . . Core Remaining (%) 100 | 100 100 . . Volleys Fired 85 | 1 1 61 22 Largest 3 | 2 2 3 3 Hottest 164 | 60 50 164 164 Shots Fired 222 | 2 2 165 53 Gun 164 | 2 1 125 36 Cannon 53 | . . 36 17 Launcher 5 | . 1 4 . Special . | . . . . Kinetic 65 | 1 1 62 1 Thermal 81 | . . 29 52 Explosive 5 | . 1 4 . Electromagnetic 71 | 1 . 70 . Robot Hit Streak 15 | . 1 15 6 Robot Miss Streak 4 | . 1 4 3 Penetration Max . | . . . . Secondary Targets 1 | . . 1 . Max Gunslinging Chain 1 | . . 1 . Shots Hit Robots 143 | . 1 107 35 Core Hits 68 | . . 58 10 Critical Kills . | . . . . Critical Parts Destroyed . | . . . . Critical Strikes 1 | . . . 1 Burn 1 | . . . 1 Melee Attacks . | . . . . Impact . | . . . . Slashing . | . . . . Piercing . | . . . . Sneak Attacks . | . . . . Combat Hostiles . | . . . . Follow-up Attacks . | . . . . Damage Inflicted 2599 | . 36 2017 546 Guns 1378 | . . 1079 299 Cannons 756 | . . 509 247 Explosions 464 | . 36 428 . Melee . | . . . . Ramming 1 | . . 1 . Kinetic 274 | . . 274 . Thermal 948 | . . 402 546 Explosive 320 | . 36 284 . Electromagnetic 1056 | . . 1056 . Impact . | . . . . Slashing . | . . . . Piercing . | . . . . Highest Corruption 15 | . . 1 15 Average Corruption 2 | . . 1 12 Corruption Purged . | . . . . Corruption Blocked . | . . . . Effects 17 | . . 7 10 Message Errors 4 | . . 1 3 Matter Fused 5 | . . 3 2 Energy Discharges 4 | . . 1 3 Parts Rejected 1 | . . . 1 Data Loss (major) 1 | . . . 1 Misfires 2 | . . 2 . Overload Shots . | . . . . Overflow Damage 40 | . . 40 . Projectiles 26 | . . 26 . Explosions 14 | . . 14 . Melee . | . . . . Knockbacks . | . . . . Impact . | . . . . Kinetic . | . . . . Secondary . | . . . . Self-Inflicted Damage 130 | . . 130 . Shots 4 | . . 4 . Rammed 1 | . . 1 . Targets Rammed 2 | . . 2 . Kicked . | . . . . Crushed 1 | . . 1 . Highest Temperature 308 | 20 10 184 308 Average Temperature 78 | 15 7 47 136 Received Heat Transfer 834 | . . 666 168 Effects 1 | . . . 1 Interference 1 | . . . 1 Siege Activations . | . . . . Robots Corrupted . | . . . . Combat Hostiles . | . . . . Parts Fried 2 | . . 2 . Impact Corruptions . | . . . . Robots Melted . | . . . . Combat Hostiles . | . . . . Parts Melted 3 | . . . 3 Heat Transferred 2006 | . . 757 1249 Parts Sabotaged . | . . . . Parts Stolen . | . . . . Parts Stripped . | . . . . Power Chain Reactions 3 | . . 3 . Alert | -11 -10 -9 -9 ------- Run | Yrd Mat Mat Min Peak Influence 551 | . 16 551 379 Initial 184 | . . 6 184 Average 211 | . 12 234 319 Maximum Alert Level 2 | . . 2 1 Low Security (%) 49 | 100 100 46 9 Level 1 35 | . . 33 90 Level 2 14 | . . 20 . Level 3 . | . . . . Level 4 . | . . . . Level 5 . | . . . . High Security . | . . . . Max Security . | . . . . Squads Dispatched 5 | . . 5 . Investigation 4 | . . 4 . Extermination . | . . . . Reinforcement 1 | . . 1 . Assault . | . . . . Garrison . | . . . . Intercept . | . . . . Searches Triggered . | . . . . Construction Impeded . | . . . . Haulers Reinforced . | . . . . Active Scanning Responses . | . . . . Cargo Convoy Interrupts . | . . . . Stealth | -11 -10 -9 -9 --------- Run | Yrd Mat Mat Min Distress Signals 2 | . . 1 1 Communications Jammed . | . . . . Distress Signals . | . . . . Times Spotted 48 | . 1 34 13 Peak Tracking Total 6 | . 1 3 6 Tactical Retreats 6 | . . 4 2 Traps | -11 -10 -9 -9 ------- Run | Yrd Mat Mat Min Traps Triggered 3 | . 1 2 . Indirectly . | . . . . Trap Hack Attempts . | . . . . Triggered . | . . . . Disarmed . | . . . . Reprogrammed . | . . . . Reused . | . . . . Traps Extracted . | . . . . Installed . | . . . . Triggered . | . . . . Machines | -11 -10 -9 -9 ---------- Run | Yrd Mat Mat Min Machines Disabled 3 | . . 3 . Max in Single Turn 1 | . . 1 . Machines Repaired . | . . . . Machines Dismantled . | . . . . Machines Sabotaged . | . . . . Overloaded Fab Kills . | . . . . Hacking | -11 -10 -9 -9 --------- Run | Yrd Mat Mat Min Machines Accessed 9 | . 3 6 . Terminals 5 | . 2 3 . Fabricators . | . . . . Repair Stations . | . . . . Recycling Units 3 | . 1 2 . Scanalyzers 1 | . . 1 . Garrison Access . | . . . . Total Hacks 23 | . 5 18 . Successful 13 | . 4 9 . Failed 10 | . 1 9 . Catastrophic . | . . . . Database Lockouts . | . . . . Manual . | . . . . Terminals 10 | . 2 8 . Fabricators . | . . . . Repair Stations . | . . . . Recycling Units 10 | . 3 7 . Scanalyzers 3 | . . 3 . Garrison Access . | . . . . Terminal Hacks 5 | . 2 3 . Record 2 | . . 2 . Prototype ID Bank 1 | . . 1 . Branch Access Points 1 | . 1 . . Zone Layout 1 | . 1 . . Fabricator Hacks . | . . . . Repair Station Hacks . | . . . . Recycling Unit Hacks 7 | . 2 5 . Report Inventory 4 | . 1 3 . Retrieve Components 3 | . 1 2 . Scanalyzer 1 | . . 1 . Insert Component 1 | . . 1 . Garrison Access Hacks . | . . . . Unauthorized Hacks . | . . . . Terminals . | . . . . Fabricators . | . . . . Repair Stations . | . . . . Recycling Units . | . . . . Scanalyzers . | . . . . Garrison Access . | . . . . Data Cores Recovered . | . . . . Used . | . . . . Hacking Detections 9 | . 3 6 . Full Trace Events 5 | . . 5 . Feedback Events 1 | . . 1 . Corruption 1 | . . 1 . Feedback Blocked . | . . . . Robot Schematics Acquired . | . . . . Robots Built . | . . . . Authchips . | . . . . Time . | . . . . Total Robot Build Rating . | . . . . Part Schematics Acquired . | . . . . Parts Built . | . . . . Authchips . | . . . . Time . | . . . . Total Part Build Rating . | . . . . Parts Repaired . | . . . . Time . | . . . . Parts Recycled . | . . . . Recycled Matter . | . . . . Retrieved Matter . | . . . . Retrieved Components 23 | . 3 20 . Parts Scanalyzed 1 | . . 1 . Part Schematics Acquired . | . . . . Parts Damaged . | . . . . Bothacking | -11 -10 -9 -9 ------------ Run | Yrd Mat Mat Min Used RIF Installer . | . . . . Robots Hacked . | . . . . Non-combat . | . . . . Combat . | . . . . Robot Hacks Applied . | . . . . Relay Couplers Released . | . . . . Fabnet Peak Effective % . | . . . . Robots Rewired . | . . . . Allies Hacked . | . . . . Hacks Repelled . | . . . . Allies | -11 -10 -9 -9 -------- Run | Yrd Mat Mat Min Total Allies . | . . . . Largest Group . | . . . . Highest-Rated Group . | . . . . Highest-Rated Ally . | . . . . Total Orders . | . . . . Ally Attacks . | . . . . Total Damage . | . . . . Kills . | . . . . Allies Corrupted . | . . . . Allies Melted . | . . . . Intel | -11 -10 -9 -9 ------- Run | Yrd Mat Mat Min Robot Analysis Total . | . . . . Derelict Logs Recovered . | . . . . Drone Launches . | . . . . Drone Recoveries . | . . . . Exploration | -11 -10 -9 -9 ------------- Run | Yrd Mat Mat Min Turns Passed 1919 | 79 201 1403 236 Spaces Moved 989 | 59 160 682 88 Core 16 | 11 . 3 2 Treads 618 | . . 616 2 Legs 355 | 48 160 63 84 Wheels . | . . . . Hover . | . . . . Flight . | . . . . Fastest Speed 50 | 50 120 120 120 Average Speed 157 | 106 120 167 178 Slowest Speed 350 | 120 120 350 350 Overloaded Moves . | . . . . Propulsion Burnouts . | . . . . Robots Hopped . | . . . . Cave-ins Triggered . | . . . . Exploration Rate (%) 28 | 5 34 59 16 Regions Visited 3 Branch Regions 1 Pre-discovered Areas . | . . . . Known Exits Taken . | . . . . Unknown Exits Taken 3 | 1 1 1 . Scrap Searched . | . . . . Spaces Dug . | . . . . Terrain Destroyed 77 | . 8 69 . Melee . | . . . . Projectile . | . . . . AOE 77 | . 8 69 . Terrain Rammed . | . . . . Walls Destroyed . | . . . . Machines Disabled . | . . . . Actions | -11 -10 -9 -9 --------- Run | Yrd Mat Mat Min Total 1189 | 73 166 826 124 Wait 22 | . . 18 4 Move 986 | 58 159 681 88 Hop . | . . . . Pick Up 37 | 8 4 21 4 Fast Attach 7 | . . 7 . Attach 29 | 6 1 16 6 Detach 3 | . . 3 . Swap 5 | . 1 4 . Drop 13 | . . 13 . Fire 85 | 1 1 61 22 Melee . | . . . . Ram . | . . . . Kick . | . . . . Crush 2 | . . 2 . Escape Stasis . | . . . . Rewire . | . . . . Trap . | . . . . Miscellaneous . | . . . . Route ------- -11/Scrapyard -10/Materials (discovered 2 exits: *Mat / Min) -9/Materials (discovered 3 exits: [*Mat] / [*Min x2]) -9/Mines History --------- Turn | Location | Event 23 | -11/Scrapyard | Discovered new exit (range 12) 80 | -11/Scrapyard | Entered Materials 119 | -10/Materials | Identified exit to Mines 228 | -10/Materials | Discovered new exit (range 8) 281 | -10/Materials | Entered another Materials area 281 | -9/Materials | Evolved 2 slots: Utility x1, Weapon x1 633 | -9/Materials | Discovered new exit (range 15) 873 | -9/Materials | Discovered new exit (range 11) 1153 | -9/Materials | Discovered new exit (range 11) 1408 | -9/Materials | Lost 3 parts (1u2w) 1458 | -9/Materials | Core integrity fell below 50% 1684 | -9/Materials | Entered Mines 1690 | -9/Mines | Build established: Gunner 1754 | -9/Mines | System corruption reached 10% 1796 | -9/Mines | Core integrity fell below 20% 1880 | -9/Mines | Assembled infested the area 1920 | -9/Mines | Destroyed by D-53 Grenadier with Mini Grenade Launcher Last Messages --------------- 01824_ System corrupted: Matter fused (-7). 01830_ G-34 Mercenary destroyed. 01833_ Acquired 38 matter. 01837_ Acquired Sml. Laser. 01840_ Acquired Aluminum Leg. 01846_ System corrupted: Energy discharge (-52). 01861_ K-01 Serf collects debris. 01862_ System corrupted: Energy discharge (-60). 01865_ K-01 Serf collects debris. 01880_ ALERT: Infestation in the mines, dispatching Demolisher response squad. 01880_ System corrupted: Matter fused (-5). 01881_ K-01 Serf collects debris. 01893_ C-30 ARC bursts open, deploying its payload. 01893_ D-53 Grenadier unfolds itself. 01911_ Beam Rifle destroyed. 01913_ Adv. Beam Cannon destroyed. 01916_ 0JR8CVF6WSO: 53XROCDFHJZW 01916_ Aluminum Leg destroyed. 01919_ K-01 Serf collects debris. Map ----- +----------------------------------------------------+ | ???????????????????????????????# #???????????????? | | ???????????????????????????????# #???????????????? | | ???????????????????????????????# #???????????????? | | ???????????????????????????????# #???????????????? | | ??????????????????????????????##%#???????????????? | | ?????????????????????????????## %##??????????????? | | ?????????????????????????????# #??????????????? | | ?????????????????????####???## #??????????????? | | ????????????????????## #?## ##?????????????? | | ????????????????????# ## ##????????????? | | ????????????????????# ### ##???????? | | ????????????????????# #???????? | | ????????????????????## #### #??????? | | ?????????????????????##### #???# #??????? | | ?????????????????????????### #???? "%" ???? | | ??????????????????????????## ##??? ?? | | ?????????????????????????## dd ##?? ######??? | | ?????????????????????????# ###? ##???????? | | ???????????????????????### #? ####????????? | | ???????????????????????# #? #???????????? | | ??????????????????????## #??????????????? | | ???????????????????#### ##??????????????? | | ??????????????????## #???????????????? | | ?????????????????## ##???????????????? | | ?????????????????# ##????????????????? | | ?????????????????# @ #?????????????????? | | ?????????????????# k ###?????????????????? | | ?????????????????## ## #???????????????????? | | ??????????????????# ??### ##???????????????????? | | ??????????????????#?????# #????????????????????? | | ????????????????????????# #????????????????????? | | ????????????????????????# ????????????????????? | | ????????????????????????# ????????????????????? | | ????????????????????????## ???????????????????? | | ?????????????????????????## ???????????????????? | | ???????????????????????????# ??????????????????? | | ???????????????????????????? ??????????????????? | | ???????????????????????????? ?????????????????? | | ???????????????????????????? ###?????????????????? | | ?????????????????????????????#???????????????????? | | ?????????????????????????????????????????????????? | | ?????????????????????????????????????????????????? | | ?????????????????????????????????????????????????? | | ?????????????????????????????????????????????????? | | ?????????????????????????????????????????????????? | | ?????????????????????????????????????????????????? | | ?????????????????????????????????????????????????? | | ?????????????????????????????????????????????????? | | ?????????????????????????????????????????????????? | | ?????????????????????????????????????????????????? | +----------------------------------------------------+ Best States ------------- Heat Dissipation 42 Energy Generation 14 Energy Capacity 250 Matter Stores 300 Matter Capacity 300 Sight Range 18 Robot Scan Range 14 Terrain Scan Density 10 Armor Coverage 150 Evasion (%) 55 Targeting Accuracy 5 Recoil Reduction 4 Item Schematics ----------------- None Robot Schematics ------------------ None Fabricated ------------ Nothing Alien Tech Used ----------------- None Achievements -------------- System Compromised Challenges ------------ None Game ------ Seed CloakPlatingCyclogen Manual? 0 Play Time 00:23:44 Cumulative 4.0 hours Start 2024.08.13 @ 19:32:44 End 2024.08.13 @ 20:00:15 Sessions 1 Manual Loads 0 Difficulty Rogue Special Mode None Game No. 8 Rogue 8 Adventurer 0 Explorer 0 Win Type - Total 0 Types 0/0/0/0/0/0/0/0/0 Lore% 2 Gallery% 6 Achievement% 8 Wizard Run 0 Options --------- Layout 2 ASCII 0 Keyboard 0 Movement Mouse Keybinds 0 Fullscreen 0 Font 20/X11 Map View 64x51 Zoom Use 0% Tactical HUD 1 Map Filters NONE Filters NONE Steam 1 RUN: 596e713a-67ef-465a-a51e-5f86088c220c